fUSD/lending_fUSD_20250415
["ID","MTS","AMOUNT","RATE_DAILY","PERIOD"]
[358073849,1744691436372,-500.0,0.00017897,2]
[358073850,1744691436382,-342.2826699,0.00017897,2]
[358073851,1744691436391,-500.0,0.00017897,2]
[358073852,1744691436400,-500.0,0.00017897,2]
[358073853,1744691436409,-639.22744867,0.00017897,2]
[358073854,1744691436419,-500.0,0.00017897,2]
[358073855,1744691436428,-500.0,0.00017897,2]
[358073856,1744691436437,-500.0,0.00017897,2]
[358073857,1744691436447,-500.0,0.00017897,2]
[358073858,1744691436456,-500.0,0.00017897,2]
[358073859,1744691436466,-598.87200638,0.00017897,2]
[358073860,1744691436476,-649.674,0.00017897,2]
[358073861,1744691436485,-555.94048706,0.00017897,2]
[358073862,1744691436494,-500.0,0.00017897,2]
[358073863,1744691436504,-500.0,0.00017897,2]
[358073864,1744691436513,-500.0,0.00017897,2]
[358073865,1744691436523,-500.0,0.00017897,2]
[358073866,1744691436532,-500.0,0.00017897,2]
[358073867,1744691436542,-562.86,0.00017897,2]
[358073868,1744691436551,-500.0,0.00017897,2]
[358073869,1744691436561,-500.0,0.00017897,2]
[358073870,1744691436571,-500.0,0.00017897,2]
[358073871,1744691436586,-500.0,0.00017897,2]
[358073872,1744691436596,-524.60625578,0.00017897,2]
[358073873,1744691436606,-500.0,0.00017897,2]
[358073874,1744691436616,-500.0,0.00017897,2]
[358073875,1744691436626,-500.0,0.00017897,2]
[358073876,1744691436636,-500.0,0.00017897,2]
[358073877,1744691436646,-500.0,0.00017897,2]
[358073878,1744691436656,-500.0,0.00017897,2]
[358073879,1744691436666,-500.0,0.00017897,2]
[358073880,1744691436675,-500.0,0.00017897,2]
[358073881,1744691436684,-500.0,0.00017897,2]
[358073882,1744691436693,-500.0,0.00017897,2]
[358073883,1744691436703,-500.0,0.00017897,2]
[358073884,1744691436712,-500.0,0.00017897,2]
[358073885,1744691436721,-500.0,0.00017897,2]
[358073886,1744691436731,-500.0,0.00017897,2]
[358073887,1744691436741,-500.0,0.00017897,2]
[358073888,1744691436751,-500.0,0.00017897,2]
[358073889,1744691436761,-500.0,0.00017897,2]
[358073890,1744691436770,-500.0,0.00017897,2]
[358073891,1744691436779,-500.0,0.00017897,2]
[358073892,1744691436788,-500.0,0.00017897,2]
[358073893,1744691436797,-511.53274264,0.00017897,2]
[358073894,1744691436807,-510.76451233,0.00017897,2]
[358073895,1744691436816,-500.0,0.00017897,2]
[358073896,1744691436825,-500.0,0.00017897,2]
[358073897,1744691436834,-500.0,0.00017897,2]
[358073898,1744691436844,-500.0,0.00017897,2]
[358073899,1744691436857,-500.0,0.00017897,2]
[358073900,1744691436867,-562.14850365,0.00017897,2]
[358073901,1744691436876,-500.0,0.00017897,2]
[358073902,1744691436885,-500.0,0.00017897,2]
[358073903,1744691436895,-500.0,0.00017897,2]
[358073904,1744691436904,-622.73692319,0.00017897,2]
[358073905,1744691436916,-500.0,0.00017897,2]
[358073906,1744691436925,-500.0,0.00017897,2]
[358073907,1744691436935,-500.0,0.00017897,2]
[358073908,1744691436944,-500.0,0.00017897,2]
[358073909,1744691436953,-500.0,0.00017897,2]
[358073910,1744691436963,-500.0,0.00017897,2]
[358073911,1744691436972,-500.0,0.00017897,2]
[358073912,1744691436981,-500.0,0.00017897,2]
[358073913,1744691436990,-534.84057992,0.00017897,2]
[358073914,1744691437000,-500.0,0.00017897,2]
[358073915,1744691437009,-500.0,0.00017897,2]
[358073916,1744691437018,-511.32855249,0.00017897,2]
[358073917,1744691437027,-500.0,0.00017897,2]
[358073918,1744691437037,-500.0,0.00017897,2]
[358073919,1744691437046,-515.39653823,0.00017897,2]
[358073920,1744691437055,-500.0,0.00017897,2]
[358073921,1744691437064,-500.0,0.00017897,2]
[358073922,1744691437073,-500.0,0.00017897,2]
[358073923,1744691437082,-500.0,0.00017897,2]
[358073924,1744691437091,-500.0,0.00017897,2]
[358073925,1744691437100,-500.0,0.00017897,2]
[358073926,1744691437110,-500.0,0.00017897,2]
[358073927,1744691437119,-500.0,0.00017897,2]
[358073928,1744691437128,-500.0,0.00017897,2]
[358073929,1744691437137,-500.0,0.00017897,2]
[358073930,1744691437145,-500.0,0.00017897,2]
[358073931,1744691437154,-500.0,0.00017897,2]
[358073932,1744691437163,-500.0,0.00017897,2]
[358073933,1744691437172,-234.8220412,0.00017897,2]
[358073934,1744691437181,-376.48900168,0.00017897,2]
[358073935,1744691437190,-548.3276664,0.00017897,2]
[358073936,1744691437199,-500.0,0.00017897,2]
[358073937,1744691437208,-500.0,0.00017897,2]
[358073938,1744691437217,-530.58150907,0.00017897,2]
[358073939,1744691437227,-500.0,0.00017897,2]
[358073940,1744691437236,-500.0,0.00017897,2]
[358073941,1744691437245,-500.0,0.00017897,2]
[358073942,1744691437254,-500.0,0.00017897,2]
[358073943,1744691437263,-500.0,0.00017897,2]
[358073944,1744691437272,-500.0,0.00017897,2]
[358073945,1744691437281,-500.0,0.00017897,2]
[358073946,1744691437291,-508.95900977,0.00017897,2]
[358073947,1744691437300,-521.40195281,0.00017897,2]
[358073948,1744691437310,-500.0,0.00017897,2]
[358073949,1744691437319,-500.0,0.00017897,2]
[358073950,1744691437328,-500.0,0.00017897,2]
[358073951,1744691437338,-500.0,0.00017897,2]
[358073952,1744691437347,-516.99892653,0.00017897,2]
[358073953,1744691437356,-519.16173264,0.00017897,2]
[358073954,1744691437366,-500.0,0.00017897,2]
[358073955,1744691437375,-561.49456136,0.00017897,2]
[358073956,1744691437384,-543.09604497,0.00017897,2]
[358073957,1744691437393,-500.0,0.00017897,2]
[358073958,1744691437403,-500.0,0.00017897,2]
[358073959,1744691437412,-500.0,0.00017897,2]
[358073960,1744691437422,-9979.64,0.00017897,2]
[358073961,1744691437431,-189.87843443,0.00017897,2]
[358073962,1744691437440,-500.0,0.00017897,2]
[358073963,1744691437450,-500.0,0.00017897,2]
[358073964,1744691437460,-500.0,0.00017897,2]
[358073965,1744691437470,-500.0,0.00017897,2]
[358073966,1744691437479,-500.0,0.00017897,2]
[358073967,1744691437488,-500.0,0.00017897,2]
[358073968,1744691437498,-500.0,0.00017897,2]
[358073969,1744691437507,-500.0,0.00017897,2]
[358073970,1744691437516,-500.0,0.00017897,2]
[358073971,1744691437526,-500.0,0.00017897,2]
[358073972,1744691437535,-500.0,0.00017897,2]
[358073973,1744691437545,-500.0,0.00017897,2]
[358073974,1744691437556,-500.0,0.00017897,2]
[358073975,1744691437565,-500.0,0.00017897,2]
[358073976,1744691437577,-500.0,0.00017897,2]
[358073977,1744691437587,-500.0,0.00017897,2]
[358073978,1744691437596,-500.0,0.00017897,2]
[358073979,1744691437605,-500.0,0.00017897,2]
[358073980,1744691437615,-500.0,0.00017897,2]
[358073981,1744691437624,-500.0,0.00017897,2]
[358073982,1744691437633,-500.0,0.00017897,2]
[358073983,1744691437642,-500.0,0.00017897,2]
[358073984,1744691437652,-500.0,0.00017897,2]
[358073985,1744691437662,-500.0,0.00017897,2]
[358073986,1744691437671,-500.0,0.00017897,2]
[358073987,1744691437680,-500.0,0.00017897,2]
[358073988,1744691437689,-500.0,0.00017897,2]
[358073989,1744691437699,-500.0,0.00017897,2]
[358073990,1744691437708,-500.0,0.00017897,2]
[358073991,1744691437717,-500.0,0.00017897,2]
[358073992,1744691437726,-500.0,0.00017897,2]
[358073993,1744691437735,-500.0,0.00017897,2]
[358073994,1744691437744,-500.0,0.00017897,2]
[358073995,1744691437753,-500.0,0.00017897,2]
[358073996,1744691437762,-500.0,0.00017897,2]
[358073997,1744691437771,-500.0,0.00017897,2]
[358073998,1744691437780,-500.0,0.00017897,2]
[358073999,1744691437789,-500.0,0.00017897,2]
[358074000,1744691437797,-527.9684743,0.00017897,2]
[358074001,1744691437806,-641.82031171,0.00017897,2]
[358074002,1744691437815,-500.0,0.00017897,2]
[358074003,1744691437823,-500.0,0.00017897,2]
[358074004,1744691437833,-791.0,0.00017898,2]
[358074005,1744691437842,-908.0,0.00017898,2]
[358074006,1744691437852,-1438.0,0.00017898,2]
[358074007,1744691437861,-1280.0,0.00017898,2]
[358074008,1744691437870,-545.0,0.00017898,2]
[358074009,1744691437880,-4149.0,0.00017898,2]
[358074010,1744691437889,-575.0,0.00017898,2]
[358074011,1744691437898,-1123.0,0.00017898,2]
[358074012,1744691437908,-1328.0,0.00017898,2]
[358074013,1744691437918,-152.0,0.00017898,2]
[358074014,1744691437927,-3965.0,0.00017898,2]
[358074015,1744691437936,-2047.0,0.00017898,2]
[358074016,1744691437945,-34751.42984633,0.00017898,2]
[358074017,1744691437961,-216096.72796818,0.00017898,2]
[358074018,1744691437970,-1000.0,0.00017898,2]
[358074019,1744691437979,-200.0,0.00017898,2]
[358074020,1744691437987,-200.0,0.00017898,2]
[358074021,1744691437996,-583.99457689,0.00017899,2]
[358074022,1744691438005,-500.0,0.00017899,2]
[358074023,1744691438014,-500.0,0.00017899,2]
[358074024,1744691438023,-500.0,0.00017899,2]
[358074025,1744691438033,-413.09276318,0.00017899,2]
[358074027,1744691438110,-86.90723682,0.00017899,2]
[358074028,1744691438119,-500.0,0.00017899,2]
[358074029,1744691438128,-500.0,0.00017899,2]
[358074030,1744691438137,-500.0,0.00017899,2]
[358074031,1744691438146,-500.0,0.00017899,2]
[358074032,1744691438155,-500.0,0.00017899,2]
[358074033,1744691438164,-500.0,0.00017899,2]
[358074034,1744691438173,-500.0,0.00017899,2]
[358074035,1744691438182,-500.0,0.00017899,2]
[358074036,1744691438191,-500.0,0.00017899,2]
[358074037,1744691438200,-500.0,0.00017899,2]
[358074038,1744691438209,-500.0,0.00017899,2]
[358074039,1744691438218,-500.0,0.00017899,2]
[358074041,1744691438226,-383.9893926,0.00017899,2]
[358074043,1744691438238,-116.0106074,0.00017899,2]
[358074044,1744691438248,-495.08,0.00017899,2]
[358074045,1744691438257,-500.0,0.00017899,2]
[358074046,1744691438266,-500.0,0.00017899,2]
[358074047,1744691438276,-500.0,0.00017899,2]
[358074048,1744691438285,-500.0,0.00017899,2]
[358074049,1744691438293,-500.0,0.00017899,2]
[358074050,1744691438302,-500.0,0.00017899,2]
[358074051,1744691438312,-500.0,0.00017899,2]
[358074052,1744691438321,-500.0,0.00017899,2]
[358074053,1744691438330,-500.0,0.00017899,2]
[358074054,1744691438339,-500.0,0.00017899,2]
[358074055,1744691438348,-500.0,0.00017899,2]
[358074056,1744691438358,-500.0,0.00017899,2]
[358074057,1744691438367,-250.0,0.000179,2]
[358074058,1744691438376,-250.0,0.000179,2]
[358074059,1744691438385,-250.0,0.000179,2]
[358074060,1744691438394,-872.13439326,0.000179,2]
[358074061,1744691438675,-663.85289851,0.00017898,2]
[358074062,1744691438687,-201.14710149,0.00017898,2]
[358074063,1744691438696,-539.60289851,0.000179,2]
[358074065,1744691438707,-588.26270823,0.000179,2]
[358074066,1744691438716,-416.36294395,0.000179,2]
[358074067,1744691438727,-12083.63705605,0.000179,2]
[358074068,1744691438736,-1764.26524536,0.000179,2]
[358074069,1744691438746,-205.0,0.0001791,2]
[358074070,1744691438755,-2000.0,0.00017937,2]
[358074072,1744691438764,-500.0,0.0001795,2]
[358074073,1744691438774,-2926.0,0.0001795,2]
[358074074,1744691438783,-1456.0,0.0001795,2]
[358074075,1744691438792,-500.0,0.0001795,2]
[358074076,1744691438801,-150.0,0.0001795,2]
[358074077,1744691438822,-281.50780258,0.0001795,2]
[358074078,1744691438831,-500.0,0.0001795,2]
[358074079,1744691438841,-500.0,0.0001795,2]
[358074080,1744691438849,-500.0,0.00017973,2]
[358074081,1744691438864,-251.92086228,0.00017973,2]
[358074082,1744691438873,-500.0,0.00017973,2]
[358074083,1744691438883,-505.28822684,0.00017973,2]
[358074084,1744691438893,-500.0,0.00017973,2]
[358074085,1744691438902,-214.21878037,0.00017973,2]
[358074086,1744691438911,-159.6635326,0.00017973,2]
[358074088,1744691438920,-500.0,0.00017973,2]
[358074089,1744691438929,-500.0,0.00017973,2]
[358074090,1744691438939,-538.88120019,0.00017973,2]
[358074091,1744691438948,-160.02610391,0.00017973,2]
[358074092,1744691438958,-162.84952729,0.00017973,2]
[358074093,1744691438968,-500.0,0.00017973,2]
[358074094,1744691438977,-505.00166301,0.00017973,2]
[358074095,1744691438987,-314.39809553,0.00017973,2]
[358074096,1744691438996,-500.0,0.00017973,2]
[358074097,1744691439005,-500.0,0.00017973,2]
[358074098,1744691439014,-500.0,0.00017973,2]
[358074099,1744691439024,-500.0,0.00017973,2]
[358074100,1744691439033,-507.53995681,0.00017973,2]
[358074101,1744691439043,-500.59780893,0.00017973,2]
[358074102,1744691439052,-500.0,0.00017973,2]
[358074103,1744691439062,-204.49614819,0.00017973,2]
[358074104,1744691439071,-500.0,0.00017973,2]
[358074105,1744691439080,-500.0,0.00017973,2]
[358074106,1744691439090,-152.73641665,0.00017973,2]
[358074107,1744691439099,-502.39419378,0.00017973,2]
[358074108,1744691439113,-159.67153441,0.00017973,2]
[358074109,1744691439122,-506.81622514,0.00017973,2]
[358074110,1744691439131,-500.0,0.00017973,2]
[358074111,1744691439145,-162.06482235,0.00017973,2]
[358074112,1744691439154,-500.0,0.00017973,2]
[358074113,1744691439164,-153.33111541,0.00017973,2]
[358074114,1744691439173,-500.0,0.00017973,2]
[358074115,1744691439182,-159.65979125,0.00017973,2]
[358074116,1744691439191,-500.0,0.00017973,2]
[358074117,1744691439199,-500.0,0.00017973,2]
[358074118,1744691439208,-501.61566963,0.00017973,2]
[358074119,1744691439218,-500.0,0.00017987,2]
[358074120,1744691439227,-500.0,0.00017987,2]
[358074121,1744691439236,-500.0,0.00017987,2]
[358074122,1744691439246,-500.0,0.00017987,2]
[358074123,1744691439255,-500.0,0.00017987,2]
[358074124,1744691439265,-516.31815688,0.00017987,2]
[358074125,1744691439275,-500.0,0.00017987,2]
[358074126,1744691439284,-500.0,0.00017987,2]
[358074127,1744691439294,-500.0,0.00017987,2]
[358074128,1744691439304,-500.0,0.00017987,2]
[358074129,1744691439473,-500.0,0.00017987,2]
[358074130,1744691439483,-9979.64,0.00017987,2]
[358074131,1744691439494,-500.0,0.00017987,2]
[358074132,1744691439504,-500.0,0.00017987,2]
[358074133,1744691439513,-500.0,0.00017987,2]
[358074134,1744691439523,-500.0,0.00017987,2]
[358074135,1744691439534,-500.0,0.00017987,2]
[358074136,1744691439543,-500.0,0.00017987,2]
[358074137,1744691439553,-500.0,0.00017987,2]
[358074138,1744691439563,-422.82628328,0.00017987,2]
[358074139,1744691439584,-77.17371672,0.00017987,2]
[358074140,1744691439595,-500.0,0.00017987,2]
[358074141,1744691439605,-214.11678327,0.00017987,2]
[358074142,1744691439617,-285.88321673,0.00017987,2]
[358074143,1744691439628,-297.32313702,0.00017987,2]
[358074144,1744691439641,-202.67686298,0.00017987,2]
[358074145,1744691439651,-256.17169356,0.00017987,2]
[358074148,1744691440594,-243.82830644,0.00017987,2]
[358074149,1744691440605,-49.39488174,0.00017987,2]
[358074150,1744691440865,-450.60511826,0.00017987,2]
[358074151,1744691440875,-500.0,0.00017987,2]
[358074152,1744691440885,-500.0,0.00017987,2]
[358074153,1744691440895,-56.55183768,0.00017987,2]
[358074154,1744691440917,-443.44816232,0.00017987,2]
[358074155,1744691440927,-500.0,0.00017987,2]
[358074156,1744691440937,-500.0,0.00017987,2]
[358074157,1744691440946,-500.0,0.00017987,2]
[358074158,1744691440955,-500.0,0.00017987,2]
[358074159,1744691440964,-500.0,0.00017987,2]
[358074160,1744691440975,-500.0,0.00017987,2]
[358074161,1744691440985,-252.0948103,0.00017988,2]
[358074189,1744691446329,-1034.21853566,0.00017898,2]
[358074190,1744691446341,-253.78146434,0.00017898,2]
[358074191,1744691446351,-6267.0740071,0.00017988,2]
[358074192,1744691446361,-5069.9238871,0.00017988,2]
[358074193,1744691446370,-10143.91022849,0.00017988,2]
[358074195,1744691467640,813.134042,7.945e-05,2]
[358074196,1744691483863,637.75413755,0.00017987,4]
[358074197,1744691558067,3612.31,0.00017097,2]
[358074198,1744691651588,268.9,0.0001711,2]
[358074199,1744691703363,475.79,0.000175,2]
[358074200,1744691929485,1000.0,0.00017047,2]
[358074201,1744692151214,158.0,0.0002,90]
[358074202,1744692286020,611.33,0.00015146,2]
[358074203,1744692286244,611.33,0.0001741,2]
[358074204,1744692484728,167.53,0.00017064,2]
[358074207,1744692602748,2000.0,0.0002,4]
[358074209,1744692631429,-323.5541949,0.00017808,2]
[358074210,1744692631439,-491.57,0.00017895,2]
[358074211,1744692631448,-300.0,0.00017895,2]
[358074212,1744692631458,-601.23255748,0.00017895,2]
[358074213,1744692631486,-308.79,0.00017895,2]
[358074214,1744692631497,-5013.72675812,0.00017895,2]
[358074215,1744692631507,-500.0,0.00017896,2]
[358074216,1744692631516,-500.0,0.00017896,2]
[358074217,1744692631525,-500.0,0.00017896,2]
[358074218,1744692631534,-526.77417563,0.00017896,2]
[358074219,1744692631543,-508.48628231,0.00017896,2]
[358074220,1744692631552,-530.55315858,0.00017896,2]
[358074221,1744692631562,-500.0,0.00017896,2]
[358074222,1744692631571,-510.74699165,0.00017896,2]
[358074223,1744692631580,-517.29040362,0.00017896,2]
[358074224,1744692631589,-500.0,0.00017896,2]
[358074225,1744692631598,-500.0,0.00017896,2]
[358074226,1744692631608,-503.77945157,0.00017896,2]
[358074227,1744692631618,-500.0,0.00017896,2]
[358074228,1744692631627,-390.14226514,0.00017896,2]
[358074229,1744692631636,-511.41108569,0.00017896,2]
[358074230,1744692631649,-500.0,0.00017896,2]
[358074231,1744692631659,-500.0,0.00017896,2]
[358074232,1744692631668,-500.0,0.00017896,2]
[358074233,1744692631677,-507.62835708,0.00017896,2]
[358074234,1744692631687,-500.0,0.00017896,2]
[358074235,1744692631696,-500.0,0.00017896,2]
[358074236,1744692631706,-500.0,0.00017896,2]
[358074238,1744692631715,-500.0,0.00017896,2]
[358074240,1744692631725,-157.25246924,0.00017896,2]
[358074242,1744692631735,-500.0,0.00017896,2]
[358074244,1744692631744,-508.63438164,0.00017896,2]
[358074246,1744692631755,-500.0,0.00017896,2]
[358074248,1744692631764,-500.0,0.00017896,2]
[358074250,1744692631773,-500.0,0.00017896,2]
[358074252,1744692631783,-500.0,0.00017896,2]
[358074254,1744692631792,-500.0,0.00017896,2]
[358074256,1744692631801,-500.0,0.00017896,2]
[358074258,1744692631811,-500.0,0.00017896,2]
[358074260,1744692631820,-519.76443301,0.00017896,2]
[358074262,1744692631828,-500.0,0.00017896,2]
[358074264,1744692631838,-500.0,0.00017896,2]
[358074266,1744692631848,-123.98820642,0.00017896,2]
[358074286,1744692632038,-376.01179358,0.00017896,2]
[358074287,1744692632048,-2804.0,0.00017896,2]
[358074290,1744692632058,-500.0,0.00017896,2]
[358074291,1744692632067,-518.5418252,0.00017896,2]
[358074293,1744692632077,-500.0,0.00017896,2]
[358074295,1744692632086,-1521.0,0.00017896,2]
[358074298,1744692632095,-500.0,0.00017896,2]
[358074299,1744692632105,-500.0,0.00017896,2]
[358074302,1744692632115,-500.0,0.00017896,2]
[358074304,1744692632124,-601.62115186,0.00017896,2]
[358074305,1744692632133,-500.0,0.00017896,2]
[358074307,1744692632143,-500.0,0.00017896,2]
[358074308,1744692632152,-500.0,0.00017896,2]
[358074309,1744692632161,-557.35255294,0.00017896,2]
[358074310,1744692632171,-500.0,0.00017896,2]
[358074311,1744692632180,-500.91895059,0.00017896,2]
[358074312,1744692632189,-500.0,0.00017896,2]
[358074313,1744692632199,-580.52621241,0.00017896,2]
[358074314,1744692632208,-500.0,0.00017896,2]
[358074315,1744692632217,-500.0,0.00017896,2]
[358074316,1744692632226,-500.0,0.00017896,2]
[358074317,1744692632235,-500.0,0.00017896,2]
[358074318,1744692632244,-281.50780258,0.00017896,2]
[358074319,1744692632253,-500.0,0.00017897,2]
[358074320,1744692632262,-551.85693911,0.00017897,2]
[358074321,1744692632271,-500.0,0.00017897,2]
[358074322,1744692632280,-417.06239979,0.00017897,2]
[358074323,1744692632289,-500.0,0.00017897,2]
[358074324,1744692632299,-500.0,0.00017897,2]
[358074325,1744692632308,-500.0,0.00017897,2]
[358074326,1744692632316,-500.0,0.00017897,2]
[358074327,1744692632326,-500.0,0.00017897,2]
[358074328,1744692632335,-500.0,0.00017897,2]
[358074329,1744692632344,-500.0,0.00017897,2]
[358074330,1744692632353,-500.0,0.00017897,2]
[358074331,1744692632362,-500.0,0.00017897,2]
[358074332,1744692632371,-515.86690266,0.00017897,2]
[358074333,1744692632380,-500.0,0.00017897,2]
[358074334,1744692632389,-500.0,0.00017897,2]
[358074335,1744692632398,-500.0,0.00017897,2]
[358074336,1744692632408,-500.0,0.00017897,2]
[358074337,1744692632417,-500.0,0.00017897,2]
[358074338,1744692632426,-500.0,0.00017897,2]
[358074339,1744692632435,-521.63976808,0.00017897,2]
[358074340,1744692632445,-530.78211801,0.00017897,2]
[358074341,1744692632454,-500.0,0.00017897,2]
[358074342,1744692632463,-172.81483386,0.00017898,2]
[358074343,1744692632473,-12500.0,0.000179,2]
[358074344,1744692632483,-1328.0,0.00017907,2]
[358074345,1744692632492,-270.82705939,0.00017907,2]
[358074346,1744692632504,-865.00944925,0.00017907,2]
[358074347,1744692632518,-152.16349136,0.00017907,2]
[358074348,1744692632528,-2047.0,0.00017907,2]
[358074349,1744692632537,-791.0,0.00017907,2]
[358074350,1744692632546,-908.0,0.00017907,2]
[358074351,1744692632555,-1438.0,0.00017907,2]
[358074352,1744692632565,-1280.0,0.00017907,2]
[358074353,1744692632574,-545.0,0.00017907,2]
[358074354,1744692632583,-3858.87494424,0.00017907,2]
[358074355,1744692632595,-290.12505576,0.00017907,2]
[358074356,1744692632604,-575.0,0.00017907,2]
[358074357,1744692632614,-150.0,0.00017907,2]
[358074358,1744692632623,-152.0,0.00017907,2]
[358074359,1744692632632,-865.0,0.00017907,2]
[358074360,1744692632641,-3965.0,0.00017907,2]
[358074361,1744692632650,-2804.0,0.00017951,2]
[358074362,1744692632661,-1521.0,0.00017951,2]
[358074363,1744692632670,-500.0,0.00017951,2]
[358074364,1744692632679,-500.0,0.00017951,2]
[358074365,1744692632689,-500.0,0.00017951,2]
[358074366,1744692632698,-500.0,0.00017951,2]
[358074367,1744692632707,-9500.24949412,0.00017975,2]
[358074373,1744692637517,-472.560984,0.00017975,2]
[358074374,1744692637573,-1428.45706008,0.00017975,2]
[358074375,1744692637630,-2435.1780253,0.00017975,2]
[358074376,1744692637639,-740.6761465,0.00017975,2]
[358074377,1744692637648,-2178.6065567,0.00017975,2]
[358074378,1744692637659,-500.0,0.00017987,2]
[358074379,1744692637667,-500.0,0.00017987,2]
[358074380,1744692637676,-500.0,0.00017987,2]
[358074381,1744692637685,-500.0,0.00017987,2]
[358074382,1744692637694,-500.0,0.00017987,2]
[358074383,1744692637708,-500.0,0.00017987,2]
[358074384,1744692637717,-500.0,0.00017987,2]
[358074385,1744692637726,-500.8686892,0.00017987,2]
[358074386,1744692637735,-500.0,0.00017987,2]
[358074387,1744692637744,-500.0,0.00017987,2]
[358074388,1744692637753,-500.0,0.00017987,2]
[358074389,1744692637763,-525.38,0.00017987,2]
[358074390,1744692637772,-500.0,0.00017987,2]
[358074391,1744692637781,-500.0,0.00017987,2]
[358074392,1744692637790,-500.0,0.00017987,2]
[358074393,1744692637799,-200.0,0.00017988,2]
[358074394,1744692637807,-200.0,0.00017988,2]
[358074395,1744692637816,-16414.705546,0.00017988,2]
[358074396,1744692637825,-18992.9655284,0.00017988,2]
[358074397,1744692637834,-878.6924932,0.00017988,2]
[358074398,1744692637843,-1016.7088399,0.00017988,2]
[358074399,1744692637852,-1784.8237798,0.00017988,2]
[358074400,1744692637860,-1391.0410029,0.00017988,2]
[358074401,1744692637868,-213.48528983,0.00017989,2]
[358074402,1744692637877,-3635.23432099,0.0001799,2]
[358074403,1744692637889,-3774.53643325,0.0001799,2]
[358074404,1744692637900,-265.71883021,0.0001799,2]
[358074405,1744692637912,-305.93319112,0.0001799,2]
[358074406,1744692637926,-2728.50698264,0.0001799,2]
[358074415,1744692639619,-2612.30408965,0.0001799,2]
[358074416,1744692639631,-727.40483639,0.0001799,2]
[358074417,1744692639642,-17004.07780853,0.0001799,2]
[358074418,1744692639654,-1583.37340851,0.0001799,2]
[358074419,1744692639675,-1406.24349477,0.0001799,2]
[358074420,1744692639686,-10720.17676449,0.0001799,2]
[358074421,1744692639837,-535.85788251,0.0001799,2]
[358074422,1744692639892,-1059.85231534,0.0001799,2]
[358074423,1744692639902,-500.50996824,0.00017996,2]
[358074424,1744692639912,-509.45987108,0.00017996,2]
[358074425,1744692639922,-500.0,0.00017996,2]
[358074426,1744692639931,-269.23585926,0.00017996,2]
[358074427,1744692639943,-171.74419586,0.00017996,2]
[358074428,1744692639953,-500.0,0.00017996,2]
[358074429,1744692639962,-500.0,0.00017996,2]
[358074430,1744692639974,-500.0,0.00017996,2]
[358074431,1744692639984,-168.25580414,0.00017996,2]
[358074432,1744692641619,-0.01565976,0.00017996,2]
[358074438,1744692642600,-378.22852423,0.00017996,2]
[358074439,1744692642610,-516.31815688,0.00017996,2]
[358074440,1744692642618,-500.0,0.00017996,2]
[358074441,1744692642627,-500.0,0.00017996,2]
[358074442,1744692642635,-500.0,0.00017996,2]
[358074443,1744692642644,-500.0,0.00017996,2]
[358074444,1744692642652,-500.0,0.00017996,2]
[358074445,1744692642663,-500.0,0.00017996,2]
[358074446,1744692642672,-380.09231862,0.00017996,2]
[358074447,1744692642684,-119.90768138,0.00017996,2]
[358074448,1744692642693,-500.0,0.00017996,2]
[358074449,1744692642702,-249.39987698,0.00017996,2]